Cogmind - Beta 11.1 @@@ ROGUE MODE // 2022.09.27 @ 09:59:43 Player: deadnoob Result: Destroyed by P-80 Master with Gamma Rifle Performance ------------- Evolutions (7) 3500 Regions Visited (28) 5600 Robots Destroyed (122) 610 Value Destroyed (3964) 3964 Prototype IDs (67) 1340 Alien Tech Used (1) 200 Bonus (2405) 2405 TOTAL SCORE: 17619 Bonus ------- High Alert Combat Kills 197 Follower Combat Kills 1198 Network Hubs Disabled 200 Met Data Miner 300 Met Warlord at Base 500 MAIN.C Attacked Warlord 500 Friendly Fire -490 Cogmind --------- Core Integrity 0/1300 Matter 8/300 Energy 91/100 System Corruption 34% Temperature Cool (2) Movement Flying (37) Location -3/Testing Parts ------- > --- POWER (3) -------- (None) > --- PROPULSION (7) --- Impulse Thruster Cooled Field Propulsion Drive > --- UTILITY (9) ------ Advanced Signal Interpreter Advanced Signal Interpreter Advanced Melee Analysis Suite Improved Transmission Jammer > --- WEAPON (3) ------- Improved Matter Neutralizer > --- INVENTORY (5) ---- Armored Heavy Treads Armored Heavy Treads Peak State ------------ > --- POWER ------------ Light Antimatter Reactor Light Antimatter Reactor > --- PROPULSION ------- Improved VTOL Module Cooled Nuclear Pulse Thruster Nuclear Pulse Array Impulse Thruster Field Propulsion Array > --- UTILITY ---------- Advanced Heat Sink Medium Storage Unit Experimental Sensor Array Advanced Signal Interpreter Experimental Cloaking Device Light Regenerative Plating Hacking Suite Advanced System Shield Ghost Barrier > --- WEAPON ----------- Vortex Rail Lance > --- INVENTORY -------- Improved VTOL Module Improved VTOL Module Energy Well Transmission Jammer Advanced Reaction Control System Authchip [R/Combat] Authchip [R/Combat] Micro-nuke Launcher Remote Datajack [Rating: 131] Favorites ----------- Power Light Fission Core Engine Ion Engine Power Core Light Fission Core Reactor Light Antimatter Reactor Propulsion Improved VTOL Module Treads Light Treads Leg Carbon-fiber Leg Flight Unit Improved VTOL Module Utility Medium Storage Unit Device Improved Heat Sink Storage Medium Storage Unit Processor Advanced Signal Interpreter Hackware Hacking Suite Protection Light Armor Plating Weapon Katana Energy Gun Small Laser Energy Cannon Ion Cannon Ballistic Gun Heavy Assault Rifle Launcher Grenade Launcher Special Weapon Remote Datajack Slashing Weapon Katana Piercing Weapon Lance Build | -11 -10 -10 -10 -9 -8 -8 -7 -7 -7 -7 -6 -6 -6 -6 -6 -5 -5 -5 -5 -5 -4 -4 -4 -4 -4 -4 -3 -3 ------- Run | Scr Mat Min Exi Min Mat Sto Fac Low Low Zio Pro Fac Low Low Dat Pro Fac Upp Upp War Pro Fac Ext Cet Arc Hub Res Tes Slots Evolved 14 | . . . . . 4 . 2 . . . . 2 . . . . 2 . . . . 2 . . . . 2 . Power 1 | . . . . . . . . . . . . . . . . . . . . . . . . . . . 1 . Propulsion 5 | . . . . . 2 . . . . . . . . . . . 2 . . . . 1 . . . . . . Utility 7 | . . . . . 2 . 2 . . . . 2 . . . . . . . . . 1 . . . . . . Weapon 1 | . . . . . . . . . . . . . . . . . . . . . . . . . . . 1 . Parts Attached 326 | 1 16 1 1 1 41 52 20 16 4 5 11 9 5 10 . 4 5 2 3 12 3 43 19 3 . 18 10 11 Power 40 | . 3 . . . 3 5 2 4 1 . 3 . 1 1 . 2 . . . 3 . 5 6 . . 1 . . Engine 18 | . 2 . . . 2 4 2 3 . . 1 . . . . . . . . . . . 4 . . . . . Core 18 | . 1 . . . 1 1 . 1 1 . 2 . 1 1 . 2 . . . 2 . 2 2 . . 1 . . Reactor 4 | . . . . . . . . . . . . . . . . . . . . 1 . 3 . . . . . . Propulsion 62 | . 5 . . . 18 13 . . . . . 2 . . . . 2 . . . . 6 2 . . 5 5 4 Treads 16 | . 5 . . . 1 2 . . . . . . . . . . . . . . . . . . . 3 4 1 Leg 23 | . . . . . 17 4 . . . . . . . . . . . . . . . . . . . 2 . . Wheel . | . . . . . . . . . . . . . . . . . . . . . . . . . . . . . Hover . | . . . . . . . . . . . . . . . . . . . . . . . . . . . . . Flight 23 | . . . . . . 7 . . . . . 2 . . . . 2 . . . . 6 2 . . . 1 3 Utility 120 | . 3 1 1 . 8 13 15 7 1 2 3 7 3 1 . 1 2 1 3 5 3 19 6 1 . 9 . 5 Device 64 | . 2 . . . 5 7 7 4 1 . . 6 . 1 . . . 1 3 4 3 12 3 1 . 2 . 2 Storage 11 | . . . 1 . . . . 1 . 1 . . . . . . 1 . . . . 3 2 . . 2 . . Processor 15 | . . . . . . 1 2 . . 1 2 . 2 . . . . . . . . . . . . 4 . 3 Hackware 10 | . . . . . . 1 3 . . . 1 . . . . 1 . . . 1 . 1 1 . . 1 . . Protection 20 | . 1 1 . . 3 4 3 2 . . . 1 1 . . . 1 . . . . 3 . . . . . . Artifact . | . . . . . . . . . . . . . . . . . . . . . . . . . . . . . Weapon 104 | 1 5 . . 1 12 21 3 5 2 3 5 . 1 8 . 1 1 1 . 4 . 13 5 2 . 3 5 2 Energy Gun 27 | 1 3 . . . 6 3 . 1 1 1 2 . . . . . . . . 2 . 3 1 . . 2 . 1 Energy Cannon 5 | . . . . . . 1 . . . . . . . 1 . . . . . . . . . . . . 2 1 Ballistic Gun 20 | . 2 . . . 5 9 1 2 . . 1 . . . . . . . . . . . . . . . . . Ballistic Cannon . | . . . . . . . . . . . . . . . . . . . . . . . . . . . . . Launcher 29 | . . . . 1 1 5 1 1 . 1 2 . 1 2 . . 1 . . 1 . 5 2 1 . 1 3 . Special Weapon 6 | . . . . . . 1 . . . . . . . 1 . 1 . . . . . 1 2 . . . . . Impact Weapon . | . . . . . . . . . . . . . . . . . . . . . . . . . . . . . Slashing Weapon 13 | . . . . . . 2 1 1 1 1 . . . 4 . . . 1 . 1 . 1 . . . . . . Piercing Weapon 4 | . . . . . . . . . . . . . . . . . . . . . . 3 . 1 . . . . Special Melee Weapon . | . . . . . . . . . . . . . . . . . . . . . . . . . . . . . Unidentified Prototypes 20 | . . . . . 2 5 . . . 1 . . 1 . . . . . . 6 . 1 1 . . . . 3 Parts Lost 68 | . 6 . . . 7 3 5 . . . 3 2 . . . . . . . . 1 4 9 5 5 1 16 1 Power 13 | . 2 . . . 1 1 2 . . . 1 . . . . . . . . . . 2 2 1 . . 1 . Propulsion 15 | . 1 . . . . 1 . . . . . 1 . . . . . . . . 1 . 2 1 3 . 4 1 Utility 27 | . 1 . . . 2 1 3 . . . 2 1 . . . . . . . . . 2 5 1 1 . 8 . Weapon 13 | . 2 . . . 4 . . . . . . . . . . . . . . . . . . 2 1 1 3 . Highest Loss Streak 16 | . 4 . . . 1 1 3 . . . 3 1 . . . . . . . . 1 3 7 5 5 1 16 1 To Critical Strikes 1 | . . . . . . . . . . . . . . . . . . . . . . . . 1 . . . . Average Slot Usage (%) 88 | . 97 100 100 100 93 92 98 100 92 94 95 88 86 86 87 91 94 94 93 94 86 88 71 53 35 47 57 26 Engine 5 | . 12 14 14 14 4 8 4 4 . . . . . . . . . . . . . . 3 1 . . . . Core 2 | . 1 . . . 3 . 1 2 6 7 5 6 6 6 6 7 11 11 11 11 6 6 1 1 . 1 3 . Treads 7 | . 19 28 28 28 4 8 . . . . . . . . . . . . . . . . . . . 5 12 3 Leg 6 | . 7 . . . 29 15 . . . . . . . . . . . . . . . . . . . 2 . . Flight 14 | . . . . . . 10 30 30 30 30 30 26 25 25 25 25 33 33 33 33 28 27 24 21 12 3 . 13 Device 10 | . 10 4 . . 16 15 6 13 7 7 7 13 12 12 12 12 10 11 11 16 16 16 12 5 2 4 3 2 Storage 8 | . 14 14 14 14 9 9 7 7 7 7 7 6 6 6 6 6 5 5 5 5 5 5 5 10 7 6 7 . Processor 5 | . . . . . . . 12 7 7 10 8 20 22 25 25 18 16 16 15 8 5 5 2 . . 9 10 5 Hackware 6 | . . . . . . . 16 15 15 15 18 6 6 6 6 11 11 11 11 13 16 15 10 10 10 13 10 . Protection 4 | . 2 9 14 14 8 6 1 1 . . . 1 . . . . . . . . . 2 . . . . . . Energy Gun 4 | . 13 14 14 14 9 . 7 . 6 6 5 . . . . . . . . . . . . . . . . . Ballistic Gun 5 | . 13 14 14 7 7 12 . 6 . . . . . . . . . . . . . . . . . . . . Slashing Weapon 2 | . . . . . . . 6 7 6 6 7 6 6 5 6 6 4 5 5 4 5 3 . . . . . . Naked Turns 26 | . . . . . . . . . . . . . . . . . . . . . . . . . . . 26 . Heaviest Build 80 | 12 15 16 21 22 34 40 20 20 20 20 20 21 20 24 19 31 30 28 29 30 30 46 41 49 17 67 80 13 Greatest Support 252 | 20 40 40 40 40 60 55 20 20 20 20 20 21 20 20 20 20 30 30 30 30 30 46 46 35 28 225 252 70 Greatest Overweight (x) 4 | . . . . . . 2 . . . . . . . 1 . 1 . . . . . 1 1 1 . 2 . 4 Average Overweight (x) . | . . . . . . . . . . . . . . . . . . . . . . . . . . . . . Largest Inventory Capacity 20 | 8 8 8 10 10 10 10 10 10 10 10 10 10 10 10 10 10 10 10 10 10 10 15 10 10 10 20 20 5 Average Capacity 10 | 8 8 8 9 10 10 10 10 10 10 10 10 10 10 10 10 10 10 10 10 10 10 10 10 10 7 10 18 5 Most Carried 20 | 6 8 8 10 10 10 10 10 10 10 10 10 10 10 10 10 10 10 10 10 10 10 10 9 8 7 5 20 5 Average Carried 9 | 6 6 7 8 9 9 9 9 9 9 9 9 9 9 9 10 9 9 9 10 9 9 9 7 7 5 4 12 4 Final Capacity 20 | 8 8 8 10 10 10 10 10 10 10 10 10 10 10 10 10 10 10 10 10 10 10 10 10 10 5 20 5 5 Final Carried 10 | 6 7 8 10 10 10 10 10 10 10 10 10 9 10 10 10 10 10 10 10 10 10 8 9 7 5 3 4 4 Class Distribution -------------------- 28% | Hacker-Sprinter 26% | Scavenger-Mutant 17% | Mutant 8% | Sprinter 7% | Hacker-Mutant 5% | Commander-Mutant 3% | Commander-Sprinter Dominant Class ---------------- Mutant | -10/Materials Mutant | -10/Mines Commander-Mutant | -10/Exiles Mutant | -9/Mines Scavenger-Mutant | -8/Materials Scavenger-Mutant | -8/Storage Hacker-Sprinter | -7/Factory Hacker-Sprinter | -7/Lower Caves Hacker-Sprinter | -7/Lower Caves Hacker-Sprinter | -7/Zion Hacker-Sprinter | -6/Proximity Caves Sprinter | -6/Factory Derelict-Sprinter | -6/Lower Caves Sprinter | -6/Lower Caves Sprinter | -6/Data Miner Hacker-Mutant | -5/Proximity Caves Hacker-Sprinter | -5/Factory Hacker-Sprinter | -5/Upper Caves Hacker-Sprinter | -5/Upper Caves Hacker-Sprinter | -5/Warlord Hacker-Sprinter | -4/Proximity Caves Hacker-Sprinter | -4/Factory Hacker-Sprinter | -4/Extension Hacker-Sprinter | -4/Cetus Hacker-Sprinter | -4/Archives Hacker-Mutant | -4/Hub_04(d) Hacker-Mutant | -3/Research Mutant | -3/Testing Resources | -11 -10 -10 -10 -9 -8 -8 -7 -7 -7 -7 -6 -6 -6 -6 -6 -5 -5 -5 -5 -5 -4 -4 -4 -4 -4 -4 -3 -3 ----------- Run | Scr Mat Min Exi Min Mat Sto Fac Low Low Zio Pro Fac Low Low Dat Pro Fac Upp Upp War Pro Fac Ext Cet Arc Hub Res Tes Matter Collected 4163 | 200 210 22 . 68 587 939 146 180 46 . 116 21 43 318 . 51 44 40 . . 41 502 492 . . . 97 . Remotely 100 | . . . . . . . . 100 . . . . . . . . . . . . . . . . . . . . Salvage Created 5359 | . 681 . . 30 1186 1121 104 650 21 . 75 21 . 50 . . . . . . . 630 271 4 . 465 50 . Parts 270 | . 26 . . . 63 78 9 16 . . 6 1 . 4 . . . . . . . 37 9 1 . 18 2 . Haulers Intercepted 11 | . 1 . . . 3 5 . . . . . . . . . . . . . . . 1 . . . 1 . . Recyclers Shooed 8 | . . . . . 5 . . . . . . . . . . . . . . . . 1 . . . . . 2 Parts Field Recycled . | . . . . . . . . . . . . . . . . . . . . . . . . . . . . . Retrieved Matter . | . . . . . . . . . . . . . . . . . . . . . . . . . . . . . Parts Self-Destructed 17 | . . . . . . . . 7 . . 2 . . 6 . 2 . . . . . . . . . . . . Prevented 1 | . . . . . . . . . . . . . . . . . . . 1 . . . . . . . . . Kills | -11 -10 -10 -10 -9 -8 -8 -7 -7 -7 -7 -6 -6 -6 -6 -6 -5 -5 -5 -5 -5 -4 -4 -4 -4 -4 -4 -3 -3 ------- Run | Scr Mat Min Exi Min Mat Sto Fac Low Low Zio Pro Fac Low Low Dat Pro Fac Upp Upp War Pro Fac Ext Cet Arc Hub Res Tes Combat Hostiles Destroyed 81 | . 12 . . 2 18 20 1 1 . . 6 . . 6 . . . . . . . 7 2 . . 5 1 . Melee 5 | . . . . . . 1 1 1 . . 1 . . 1 . . . . . . . . . . . . . . Guns 42 | . 12 . . . 15 15 . . . . . . . . . . . . . . . . . . . . . . Cannons 2 | . . . . . . 2 . . . . . . . . . . . . . . . . . . . . . . AOE 32 | . . . . 2 3 2 . . . . 5 . . 5 . . . . . . . 7 2 . . 5 1 . Classes Destroyed 14 | . 4 . . 2 4 2 1 . . . . . . . . . . . . . . . . . . . 1 . Worker 6 | . . . . . 1 1 1 . . . . . . . . . . . . . . 1 . . . 2 . . Builder 5 | . . . . . . 2 . . . . . . . . . . . . . . . 2 1 . . . . . Tunneler 2 | . . . . 1 . . . . . . . . . . . . . . . . . 1 . . . . . . Hauler 11 | . 1 . . . 3 5 . . . . . . . . . . . . . . . 1 . . . 1 . . Recycler 6 | . 1 . . . 2 . . . . . . . . . . . . . . . . 2 1 . . . . . Watcher 12 | . 1 . . . . 2 1 . . . . 1 . . . . . . . . . 4 1 1 . 1 . . Swarmer 27 | . . . . . 3 4 . . . . 6 . . 6 . . . . . . . 6 . . . 2 . . Grunt 34 | . 12 . . . 10 6 . . . . . . . . . . . . . . . 1 2 . . 3 . . Duelist 1 | . . . . . . 1 . . . . . . . . . . . . . . . . . . . . . . Protector 1 | . . . . . . . . . . . . . . . . . . . . . . . . . . . 1 . Sentry 14 | . . . . . 4 9 . 1 . . . . . . . . . . . . . . . . . . . . Hunter 1 | . . . . . 1 . . . . . . . . . . . . . . . . . . . . . . . Programmer 1 | . . . . . . . 1 . . . . . . . . . . . . . . . . . . . . . Decomposer 6 | . . . . . . . . 5 1 . . . . . . . . . . . . . . . . . . . Packrat 6 | . . . . . . . . 6 . . . . . . . . . . . . . . . . . . . . Assembled 2 | . . . . 2 . . . . . . . . . . . . . . . . . . . . . . . . Thug 1 | . . . . . 1 . . . . . . . . . . . . . . . . . . . . . . . Best Kill Streak 8 | . 3 . . 3 5 5 1 1 . . 3 1 . 3 . . . . . . . 5 3 1 . 8 1 . Combat Bots Only 5 | . 3 . . 2 4 5 1 1 . . 3 . . 3 . . . . . . . 5 2 . . 4 1 . Max Kills in Single Turn 5 | . 1 . . 2 2 2 1 1 1 . 3 1 . 2 . . . . . . . 4 2 1 . 5 1 . Gunslinging 1 | . . . . . . 1 . . . . . . . . . . . . . . . . . . . . . . Exploded 3 | . . . . 1 2 1 . . . . 3 . . 2 . . . . . . . 3 1 . . 2 1 . Melee 1 | . . . . . . 1 1 1 . . 1 . . 1 . . . . . . . . . . . . . . Uniques/NPCs Destroyed . | . . . . . . . . . . . . . . . . . . . . . . . . . . . . . Combat | -11 -10 -10 -10 -9 -8 -8 -7 -7 -7 -7 -6 -6 -6 -6 -6 -5 -5 -5 -5 -5 -4 -4 -4 -4 -4 -4 -3 -3 -------- Run | Scr Mat Min Exi Min Mat Sto Fac Low Low Zio Pro Fac Low Low Dat Pro Fac Upp Upp War Pro Fac Ext Cet Arc Hub Res Tes Damage Taken 12071 | . 996 . . 61 1352 1071 426 70 . . 171 176 39 138 . 19 . . 24 38 85 991 1030 301 293 993 3421 376 Core 2365 | . 172 . . . 123 101 80 11 . . 16 59 21 61 . . . . . . 37 22 172 22 129 39 1185 115 Absorbed by Shields 107 | . . . . . . 48 . . . . . . . . . . . . . . . . 59 . . . . . Regen/Repaired (Parts) 943 | . 262 . . . 279 360 14 . . . . . . . . . . . . . . 28 . . . . . . Core Remaining (%) 74 | 100 . . . 31 . 59 . . . . 84 . . . . 83 . . . . 96 . . . . 66 . . Volleys Fired 338 | . 82 . . 2 98 68 . . . . 2 . . 8 . . . . . . . 18 44 2 . 7 7 . Largest 2 | . 2 . . 1 2 2 . . . . 1 . . 1 . . . . . . . 1 1 1 . 1 1 . Hottest 105 | . 80 . . 30 105 86 . . . . 39 . . 75 . . . . . . . 49 49 49 . 46 81 . Shots Fired 559 | . 156 . . 2 185 129 . . . . 2 . . 8 . . . . . . . 18 43 2 . 7 7 . Gun 473 | . 156 . . . 183 108 . . . . . . . . . . . . . . . 12 11 . . 3 . . Cannon 19 | . . . . . . 12 . . . . . . . 2 . . . . . . . . . . . . 5 . Launcher 37 | . . . . 2 2 9 . . . . 2 . . 6 . . . . . . . 6 2 2 . 4 2 . Special 30 | . . . . . . . . . . . . . . . . . . . . . . . 30 . . . . . Kinetic 218 | . 72 . . . 46 100 . . . . . . . . . . . . . . . . . . . . . . Thermal 216 | . 59 . . . 137 20 . . . . . . . . . . . . . . . . . . . . . . Explosive 33 | . . . . 2 2 9 . . . . 2 . . 6 . . . . . . . 6 2 2 . . 2 . Electromagnetic 36 | . 25 . . . . . . . . . . . . 2 . . . . . . . . . . . 4 5 . Entropic 26 | . . . . . . . . . . . . . . . . . . . . . . 12 11 . . 3 . . Robot Hit Streak 28 | . 9 . . . 10 14 . . . . . . . . . . . . . . . . 20 . . 24 28 . Robot Miss Streak 6 | . 3 . . . 6 3 . . . . . . . 1 . . . . . . . . 1 . . . 1 . Penetration Max 1 | . . . . . . . . . . . . . . . . . . . . . . . 1 . . . . . Secondary Targets 6 | . 3 . . . 1 2 . . . . . . . . . . . . . . . . . . . . . . Max Gunslinging Chain 1 | . 1 . . . 1 1 . . . . . . . . . . . . . . . . . . . . . . Shots Hit Robots 409 | . 107 . . . 115 99 11 16 1 . 2 2 . 1 . . . . . . . 14 32 . . 4 5 . Core Hits 233 | . 33 . . 5 55 51 3 7 1 . 6 1 . 9 . . . . . . . 24 7 9 . 15 7 . Critical Kills 1 | . . . . . 1 . . . . . . . . . . . . . . . . . . . . . . . Critical Parts Destroyed 1 | . . . . . . . . . . . . . . . . . . . . . . . 1 . . . . . Critical Strikes 7 | . . . . . 2 . 1 . . . . . . . . . . . . . . 3 1 . . . . . Burn 1 | . . . . . 1 . . . . . . . . . . . . . . . . . . . . . . . Destroy 1 | . . . . . 1 . . . . . . . . . . . . . . . . . . . . . . . Sever 2 | . . . . . . . 1 . . . . . . . . . . . . . . 1 . . . . . . Impale 2 | . . . . . . . . . . . . . . . . . . . . . . 2 . . . . . . Detonate 1 | . . . . . . . . . . . . . . . . . . . . . . . 1 . . . . . Melee Attacks 203 | . . . . . . 9 23 19 17 5 33 10 2 6 1 . 6 2 1 2 14 36 8 8 1 . . . Impact . | . . . . . . . . . . . . . . . . . . . . . . . . . . . . . Slashing 164 | . . . . . . 9 23 19 17 5 33 10 2 6 1 . 6 2 1 2 14 14 . . . . . . Piercing 39 | . . . . . . . . . . . . . . . . . . . . . . 22 8 8 1 . . . Sneak Attacks 22 | . . . . . . 1 1 11 1 . . 1 . . . . . . . . . 5 2 . . . . . Combat Hostiles . | . . . . . . . . . . . . . . . . . . . . . . . . . . . . . Follow-up Attacks 1 | . . . . . . . . . . . . . . . . . . . . . . 1 . . . . . . Damage Inflicted 13171 | . 1159 . . 158 1630 2201 428 984 81 . 416 109 . 419 . . . . . . . 2124 909 310 . 1212 1015 16 Guns 3997 | . 1149 . . . 1410 1251 . . . . . . . . . . . . . . . . 187 . . . . . Cannons 307 | . . . . . . 186 . . . . . . . . . . . . . . . . . . . . 121 . Explosions 5766 | . . . . 146 217 541 . . . . 354 . . 379 . . . . . . . 1275 510 310 . 1212 822 . Melee 2973 | . . . . . . 208 428 984 81 . 62 109 . 40 . . . . . . . 849 212 . . . . . Ramming 128 | . 10 . . 12 3 15 . . . . . . . . . . . . . . . . . . . . 72 16 Kinetic 1935 | . 483 . . . 321 1131 . . . . . . . . . . . . . . . . . . . . . . Thermal 1957 | . 448 . . . 1089 306 . . . . . . . . . . . . . . . 114 . . . . . . Explosive 4364 | . . . . 146 217 541 . . . . 354 . . 379 . . . . . . . 1161 434 310 . . 822 . Electromagnetic 1627 | . 218 . . . . . . . . . . . . . . . . . . . . . 76 . . 1212 121 . Impact . | . . . . . . . . . . . . . . . . . . . . . . . . . . . . . Slashing 2016 | . . . . . . 208 428 984 81 . 62 109 . 40 . . . . . . . 104 . . . . . . Piercing 957 | . . . . . . . . . . . . . . . . . . . . . . 745 212 . . . . . Entropic 187 | . . . . . . . . . . . . . . . . . . . . . . . 187 . . . . . Highest Corruption 33 | . . . . . 6 6 7 . . . . . . . . . . . . . . 2 23 23 23 25 30 33 Average Corruption 8 | . . . . . 3 6 5 . . . . . . . . . . . . . . 1 12 23 23 23 25 30 Corruption Purged 7 | . . . . . . . 7 . . . . . . . . . . . . . . . . . . . . . Corruption Blocked 30 | . . . . . . . . . . . . . . . . . . . . . . . . . . . . 30 Effects 154 | . . . . . 26 67 11 . . . . . . . . . . . . . . . 16 4 2 14 5 9 Message Errors 36 | . . . . . 9 13 3 . . . . . . . . . . . . . . . 4 1 1 3 . 2 Matter Fused 26 | . . . . . 5 10 3 . . . . . . . . . . . . . . . 1 . . 2 3 2 Heat Flow Errors 22 | . . . . . 2 13 2 . . . . . . . . . . . . . . . 2 . . 1 . 2 Energy Discharges 20 | . . . . . 4 10 1 . . . . . . . . . . . . . . . 3 . . 2 . . Parts Rejected 2 | . . . . . . 1 . . . . . . . . . . . . . . . . . . . . . 1 Data Loss (minor) 16 | . . . . . 1 6 . . . . . . . . . . . . . . . . 3 2 . 3 . 1 Data Loss (major) 9 | . . . . . . 5 2 . . . . . . . . . . . . . . . . . . 2 . . Misfires 7 | . . . . . 2 5 . . . . . . . . . . . . . . . . . . . . . . Alerts 4 | . . . . . 1 1 . . . . . . . . . . . . . . . . 1 . . . 1 . Misdirections 6 | . . . . . . . . . . . . . . . . . . . . . . . 1 1 1 1 1 1 Weapon Failures 6 | . . . . . 2 3 . . . . . . . . . . . . . . . . 1 . . . . . Overload Shots . | . . . . . . . . . . . . . . . . . . . . . . . . . . . . . Overflow Damage 1052 | . . . . 2 . 25 42 382 . . 63 27 . 15 . . . . . . . 314 70 . . 40 72 . Projectiles . | . . . . . . . . . . . . . . . . . . . . . . . . . . . . . Explosions 386 | . . . . 2 . 25 . . . . 63 . . . . . . . . . . 151 33 . . 40 72 . Melee 666 | . . . . . . . 42 382 . . . 27 . 15 . . . . . . . 163 37 . . . . . Knockbacks 1 | . . . . . . . . . . . . . . . . . . . . . . . . . . . 1 . Impact 1 | . . . . . . . . . . . . . . . . . . . . . . . . . . . 1 . Kinetic . | . . . . . . . . . . . . . . . . . . . . . . . . . . . . . Secondary . | . . . . . . . . . . . . . . . . . . . . . . . . . . . . . Self-Inflicted Damage 313 | . . . . . 14 37 . . . . 24 . . 33 . . . . . . . 54 . . . 29 122 . Shots 8 | . . . . . 1 1 . . . . 1 . . 2 . . . . . . . 1 . . . 1 1 . Rammed 30 | . 2 . . 3 . 2 . . . . . . . . . . . . . . . . . . . . 9 14 Targets Rammed 35 | . 3 . . 3 2 4 . . . . . . . . . . . . . . . . . . . . 9 14 Kicked 4 | . 1 . . . 2 1 . . . . . . . . . . . . . . . . . . . . . . Crushed 1 | . . . . . . 1 . . . . . . . . . . . . . . . . . . . . . . Highest Temperature 288 | . 189 . . . 188 257 228 . . . . 12 . 44 . . 264 216 288 2 . 4 261 4 . 252 19 228 Average Temperature 84 | . 50 . . . 42 103 110 . . . . 6 . 24 . . 126 70 81 2 . 3 83 3 . 118 19 110 Received Heat Transfer 2495 | . 591 . . . 738 369 33 18 . . . 72 . . . 9 . . 9 9 . 153 70 18 36 117 253 . Effects 1 | . . . . . . . . . . . . . . . . . . . . . . . . . . . . 1 Energy Bleed 1 | . . . . . . . . . . . . . . . . . . . . . . . . . . . . 1 Siege Activations . | . . . . . . . . . . . . . . . . . . . . . . . . . . . . . Robots Corrupted 1 | . . . . . . . . . . . . . . . . . . . . . . . . . . 1 . . Combat Hostiles . | . . . . . . . . . . . . . . . . . . . . . . . . . . . . . Parts Fried 9 | . 1 . . . . . . . . . . . . . . . . . . . . . . . . 8 . . Impact Corruptions . | . . . . . . . . . . . . . . . . . . . . . . . . . . . . . Robots Melted . | . . . . . . . . . . . . . . . . . . . . . . . . . . . . . Combat Hostiles . | . . . . . . . . . . . . . . . . . . . . . . . . . . . . . Parts Melted 3 | . 1 . . . 2 . . . . . . . . . . . . . . . . . . . . . . . Heat Transferred 4294 | . 1025 . . . 2601 518 . . . . . . . . . . . . . . . 150 . . . . . . Parts Sabotaged . | . . . . . . . . . . . . . . . . . . . . . . . . . . . . . Parts Stolen . | . . . . . . . . . . . . . . . . . . . . . . . . . . . . . Parts Stripped . | . . . . . . . . . . . . . . . . . . . . . . . . . . . . . Power Chain Reactions . | . . . . . . . . . . . . . . . . . . . . . . . . . . . . . Missiles Intercepted . | . . . . . . . . . . . . . . . . . . . . . . . . . . . . . Alert | -11 -10 -10 -10 -9 -8 -8 -7 -7 -7 -7 -6 -6 -6 -6 -6 -5 -5 -5 -5 -5 -4 -4 -4 -4 -4 -4 -3 -3 ------- Run | Scr Mat Min Exi Min Mat Sto Fac Low Low Zio Pro Fac Low Low Dat Pro Fac Upp Upp War Pro Fac Ext Cet Arc Hub Res Tes Peak Influence 1186 | . 205 27 . 175 254 477 603 . . . . 124 . . . . 110 . . . . 843 719 445 220 1186 678 281 Initial 622 | . . 27 . . . 107 173 . . . . . . . . . 50 . . . . 9 413 371 178 66 622 251 Average 250 | . 78 27 . 62 126 311 266 . . . . 63 . . . . 74 . . . . 264 507 397 190 367 584 267 Maximum Alert Level 4 | . 1 . . . 1 2 2 . . . . . . . . . . . . . . 3 3 2 1 4 2 1 Low Security (%) 51 | 100 95 100 . 100 85 24 32 . . . . 100 . . . . 100 . . . . 55 . . 68 41 . . Level 1 26 | . 4 . . . 14 52 51 . . . . . . . . . . . . . . 15 7 55 31 35 9 100 Level 2 21 | . . . . . . 22 15 . . . . . . . . . . . . . . 23 91 44 . 7 90 . Level 3 . | . . . . . . . . . . . . . . . . . . . . . . 5 . . . 6 . . Level 4 . | . . . . . . . . . . . . . . . . . . . . . . . . . . 9 . . Level 5 . | . . . . . . . . . . . . . . . . . . . . . . . . . . . . . High Security . | . . . . . . . . . . . . . . . . . . . . . . . . . . . . . Max Security . | . . . . . . . . . . . . . . . . . . . . . . . . . . . . . Squads Dispatched 28 | . 2 . . . 5 . 4 . . . . 2 . . . . 1 . . . . 8 1 . . 3 2 . Investigation 10 | . 1 . . . 2 . 3 . . . . 1 . . . . 1 . . . . 2 . . . . . . Extermination 2 | . . . . . . . . . . . . . . . . . . . . . . 1 . . . . 1 . Reinforcement 14 | . 1 . . . 2 . 1 . . . . 1 . . . . . . . . . 5 1 . . 3 . . Assault 1 | . . . . . . . . . . . . . . . . . . . . . . . . . . . 1 . Garrison 1 | . . . . . 1 . . . . . . . . . . . . . . . . . . . . . . . Intercept . | . . . . . . . . . . . . . . . . . . . . . . . . . . . . . Searches Triggered 3 | . . . . . . . 1 . . . . . . . . . . . . . . 1 1 . . . . . Data Miner Redirects 4 | . . . . . . . . . . . . . . . . . 1 . . . . 2 . . . . 1 . Construction Impeded 4 | . . . . . 1 . . . . . . . . . . . . . . . . 1 1 . . 1 . . Haulers Reinforced 1 | . . . . . . . . . . . . . . . . . . . . . . 1 . . . . . . Active Scanning Responses . | . . . . . . . . . . . . . . . . . . . . . . . . . . . . . Cargo Convoy Interrupts . | . . . . . . . . . . . . . . . . . . . . . . . . . . . . . Stealth | -11 -10 -10 -10 -9 -8 -8 -7 -7 -7 -7 -6 -6 -6 -6 -6 -5 -5 -5 -5 -5 -4 -4 -4 -4 -4 -4 -3 -3 --------- Run | Scr Mat Min Exi Min Mat Sto Fac Low Low Zio Pro Fac Low Low Dat Pro Fac Upp Upp War Pro Fac Ext Cet Arc Hub Res Tes Distress Signals 17 | . 2 . . . 3 1 . . . . . . . . . . . . . . . 3 . 1 . 5 1 1 Communications Jammed 2 | . . . . . . . . . . . . . . . . . . . . . . 2 . . . . . . Distress Signals 2 | . . . . . . . . . . . . . . . . . . . . . . 2 . . . . . . Times Spotted 306 | . 22 . . 12 28 29 30 1 4 . 6 12 2 14 . 3 . . 1 16 1 45 27 4 4 23 16 6 Peak Tracking Total 21 | . 7 . . 3 5 4 9 1 4 . 3 8 2 4 . 6 . . 1 16 1 21 6 5 4 14 11 4 Tactical Retreats 42 | . . . . 1 2 2 8 . 1 . 1 2 1 3 . 2 . . . . 1 8 5 . . 4 1 . Traps | -11 -10 -10 -10 -9 -8 -8 -7 -7 -7 -7 -6 -6 -6 -6 -6 -5 -5 -5 -5 -5 -4 -4 -4 -4 -4 -4 -3 -3 ------- Run | Scr Mat Min Exi Min Mat Sto Fac Low Low Zio Pro Fac Low Low Dat Pro Fac Upp Upp War Pro Fac Ext Cet Arc Hub Res Tes Traps Triggered 8 | . . . . . 2 . 1 . . . . 1 . . . . . . . . . . 1 . . . 3 . Indirectly . | . . . . . . . . . . . . . . . . . . . . . . . . . . . . . Trap Hack Attempts . | . . . . . . . . . . . . . . . . . . . . . . . . . . . . . Triggered . | . . . . . . . . . . . . . . . . . . . . . . . . . . . . . Disarmed . | . . . . . . . . . . . . . . . . . . . . . . . . . . . . . Reprogrammed . | . . . . . . . . . . . . . . . . . . . . . . . . . . . . . Reused . | . . . . . . . . . . . . . . . . . . . . . . . . . . . . . Traps Extracted . | . . . . . . . . . . . . . . . . . . . . . . . . . . . . . Installed . | . . . . . . . . . . . . . . . . . . . . . . . . . . . . . Triggered 10 | . . . . . . . . . 1 . . . . . . . . . . 9 . . . . . . . . Machines | -11 -10 -10 -10 -9 -8 -8 -7 -7 -7 -7 -6 -6 -6 -6 -6 -5 -5 -5 -5 -5 -4 -4 -4 -4 -4 -4 -3 -3 ---------- Run | Scr Mat Min Exi Min Mat Sto Fac Low Low Zio Pro Fac Low Low Dat Pro Fac Upp Upp War Pro Fac Ext Cet Arc Hub Res Tes Machines Disabled 35 | . . . . . . 2 . . . 1 . . . . . . . . . . . 5 2 1 . 24 . . Max in Single Turn 18 | . . . . . . 1 . . . 1 . . . . . . . . . . . 2 . 1 . 18 . . Garrison Access 1 | . . . . . . . . . . . . 1 . . . . . . . . . . . . . . . . Network Hub 1 | . . . . . . . . . . . . . . . . . . . . . . . . . . 1 . . Energy Cycler 2 | . . . . . . . . . . . . . . . . . . . . . . . 2 . . . . . Machines Sabotaged . | . . . . . . . . . . . . . . . . . . . . . . . . . . . . . Garrisons Compromised . | . . . . . . . . . . . . . . . . . . . . . . . . . . . . . Overloaded Fab Kills . | . . . . . . . . . . . . . . . . . . . . . . . . . . . . . Hacking | -11 -10 -10 -10 -9 -8 -8 -7 -7 -7 -7 -6 -6 -6 -6 -6 -5 -5 -5 -5 -5 -4 -4 -4 -4 -4 -4 -3 -3 --------- Run | Scr Mat Min Exi Min Mat Sto Fac Low Low Zio Pro Fac Low Low Dat Pro Fac Upp Upp War Pro Fac Ext Cet Arc Hub Res Tes Machines Accessed 89 | . 7 . 2 . 6 13 12 . . . . 5 1 . 4 . 4 1 2 4 . 8 6 1 . 9 3 1 Terminals 53 | . 5 . . . 2 10 7 . . . . 4 . . . . 3 . 1 . . 4 6 1 . 9 1 . Fabricators 9 | . . . . . . . 3 . . . . . . . . . 1 . . . . 3 . . . . 1 1 Repair Stations 6 | . 1 . . . 2 2 1 . . . . . . . . . . . . . . . . . . . . . Recycling Units 6 | . 1 . . . 2 1 1 . . . . . . . . . . . . . . 1 . . . . . . Scanalyzers 1 | . . . . . . . . . . . . . . . . . . . . . . . . . . . 1 . Garrison Access 1 | . . . . . . . . . . . . 1 . . . . . . . . . . . . . . . . Total Hacks 347 | . 32 . 2 . 20 54 35 . . . . 13 1 . 31 . 14 1 2 8 . 36 27 2 . 61 5 3 Successful 221 | . 22 . 2 . 13 36 26 . . . . 9 1 . 31 . 7 1 2 8 . 19 8 1 . 33 2 . Failed 125 | . 10 . . . 7 18 8 . . . . 4 . . . . 7 . . . . 17 19 1 . 28 3 3 Catastrophic 21 | . 1 . . . 1 . . . . . . 1 . . . . 1 . . . . 3 6 1 . 4 2 1 Database Lockouts 1 | . . . . . . . 1 . . . . . . . . . . . . . . . . . . . . . Manual 169 | . 13 . 2 . 4 21 20 . . . . 8 . . . . 10 . . 1 . 16 21 . . 52 1 . Terminals 218 | . 19 . . . 5 29 26 . . . . 11 . . . . 12 . 1 . . 24 27 2 . 61 1 . Fabricators 21 | . . . . . . . 5 . . . . . . . . . 2 . . . . 8 . . . . 3 3 Repair Stations 45 | . 10 . . . 11 22 2 . . . . . . . . . . . . . . . . . . . . . Recycling Units 16 | . 3 . . . 4 3 2 . . . . . . . . . . . . . . 4 . . . . . . Scanalyzers 1 | . . . . . . . . . . . . . . . . . . . . . . . . . . . 1 . Garrison Access 2 | . . . . . . . . . . . . 2 . . . . . . . . . . . . . . . . Terminal Hacks 109 | . 7 . 2 . 1 11 13 . . . . 5 1 . 31 . 4 1 2 8 . 5 3 1 . 14 . . Record 16 | . 1 . 1 . . . . . . . . . . . 11 . . . 1 2 . . . . . . . . Part Schematic 13 | . . . . . . . 1 . . . . . . . 11 . . . . . . 1 . . . . . . Robot Schematic 6 | . . . . . . . . . . . . . . . 6 . . . . . . . . . . . . . Robot Analysis 8 | . . . . . . 2 3 . . . . 1 . . . . 1 . . . . . . . . 1 . . Prototype ID Bank 10 | . 1 . . . . . 1 . . . . 1 . . 3 . . . . 4 . . . . . . . . Open Door 9 | . . . . . . 3 . . . . . . 1 . . . . 1 1 2 . . . 1 . . . . Level Access Points 1 | . . . . . . . . . . . . . . . . . . . . . . . . . . 1 . . Branch Access Points 4 | . . . . . 1 . 1 . . . . 1 . . . . 1 . . . . . . . . . . . Emergency Access Points 1 | . . . . . . . . . . . . . . . . . . . . . . . . . . 1 . . Machine Index 1 | . . . . . . . 1 . . . . . . . . . . . . . . . . . . . . . Terminal Index 7 | . 1 . . . . 1 . . . . . 1 . . . . 1 . . . . 1 1 . . 1 . . Scanalyzer Index 1 | . . . . . . 1 . . . . . . . . . . . . . . . . . . . . . . Alert Level 4 | . . . . . . 1 . . . . . . . . . . . . . . . . 1 . . 2 . . Unreport Threat 1 | . . . . . . 1 . . . . . . . . . . . . . . . . . . . . . . Locate Traps 9 | . 2 . . . . . 2 . . . . . . . . . . . . . . 1 . . . 4 . . Security Status 1 | . . . . . . . 1 . . . . . . . . . . . . . . . . . . . . . Recall Reinforcements 1 | . . . . . . . . . . . . . . . . . . . . . . . . . . 1 . . Hauler Manifests 1 | . . . . . . . . . . . . . . . . . . . . . . 1 . . . . . . Zone Layout 14 | . 2 . . . . 2 3 . . . . 1 . . . . 1 . . . . 1 1 . . 3 . . EX-Prototype ID Bank 1 | . . . 1 . . . . . . . . . . . . . . . . . . . . . . . . . Fabricator Hacks 14 | . . . . . . . 4 . . . . . . . . . 2 . . . . 7 . . . . 1 . Network Status 2 | . . . . . . . 1 . . . . . . . . . . . . . . 1 . . . . . . Load Schematic 5 | . . . . . . . 1 . . . . . . . . . 1 . . . . 3 . . . . . . Build 7 | . . . . . . . 2 . . . . . . . . . 1 . . . . 3 . . . . 1 . Repair Station Hacks 36 | . 8 . . . 9 17 2 . . . . . . . . . . . . . . . . . . . . . Scan Component 19 | . 4 . . . 5 9 1 . . . . . . . . . . . . . . . . . . . . . Repair 17 | . 4 . . . 4 8 1 . . . . . . . . . . . . . . . . . . . . . Recycling Unit Hacks 2 | . 1 . . . . . . . . . . . . . . . . . . . . 1 . . . . . . Retrieve Components 2 | . 1 . . . . . . . . . . . . . . . . . . . . 1 . . . . . . Scanalyzer 1 | . . . . . . . . . . . . . . . . . . . . . . . . . . . 1 . Insert Component 1 | . . . . . . . . . . . . . . . . . . . . . . . . . . . 1 . Garrison Access Hacks 1 | . . . . . . . . . . . . 1 . . . . . . . . . . . . . . . . Seal Access 1 | . . . . . . . . . . . . 1 . . . . . . . . . . . . . . . . Unauthorized Hacks 58 | . 6 . . . 3 8 7 . . . . 3 . . . . 1 . . . . 6 5 . . 19 . . Terminals 48 | . 4 . . . 1 6 6 . . . . 3 . . . . 1 . . . . 3 5 . . 19 . . Track 14 | . 2 . . . . 1 2 . . . . 1 . . . . . . . . . . 2 . . 6 . . Assimilate 6 | . . . . . . 2 2 . . . . 1 . . . . . . . . . . 1 . . . . . Botnet 19 | . 2 . . . 1 2 1 . . . . 1 . . . . 1 . . . . 3 2 . . 6 . . Detonate 4 | . . . . . . . . . . . . . . . . . . . . . . . . . . 4 . . Disrupt 2 | . . . . . . . . . . . . . . . . . . . . . . . . . . 2 . . Operators 3 | . . . . . . 1 1 . . . . . . . . . . . . . . . . . . 1 . . Fabricators . | . . . . . . . . . . . . . . . . . . . . . . . . . . . . . Repair Stations . | . . . . . . . . . . . . . . . . . . . . . . . . . . . . . Recycling Units 10 | . 2 . . . 2 2 1 . . . . . . . . . . . . . . 3 . . . . . . Monitor 1 | . . . . . . . . . . . . . . . . . . . . . . 1 . . . . . . Reject 4 | . 1 . . . 1 1 . . . . . . . . . . . . . . . 1 . . . . . . Mask 3 | . 1 . . . . 1 . . . . . . . . . . . . . . . 1 . . . . . . Tunnel 2 | . . . . . 1 . 1 . . . . . . . . . . . . . . . . . . . . . Scanalyzers . | . . . . . . . . . . . . . . . . . . . . . . . . . . . . . Garrison Access . | . . . . . . . . . . . . . . . . . . . . . . . . . . . . . Data Cores Recovered . | . . . . . . . . . . . . . . . . . . . . . . . . . . . . . Used . | . . . . . . . . . . . . . . . . . . . . . . . . . . . . . Hacking Detections 65 | . 6 . . . 5 10 10 . . . . 5 . . . . 4 . . . . 7 6 1 . 8 2 1 Full Trace Events 10 | . 1 . . . 3 . 2 . . . . 1 . . . . 1 . . . . 2 . . . . . . Feedback Events . | . . . . . . . . . . . . . . . . . . . . . . . . . . . . . Feedback Blocked . | . . . . . . . . . . . . . . . . . . . . . . . . . . . . . Robot Schematics Acquired 6 | . . . . . . . . . . . . . . . 6 . . . . . . . . . . . . . Robots Built 6 | . . . . . . . 4 . . . . . . . . . . . . . . 2 . . . . . . Authchips 1 | . . . . . . . . . . . . . . . . . . . . . . 1 . . . . . . Time 316 | . . . . . . . 67 . . . . . . . . . . . . . . 249 . . . . . . Total Robot Build Rating 30 | . . . . . . . 16 . . . . . . . . . . . . . . 14 . . . . . . Part Schematics Acquired 13 | . . . . . . . 1 . . . . . . . 11 . . . . . . 1 . . . . . . Parts Built 5 | . . . . . . . 2 . . . . . . . . . 1 . . . . 1 . . . . 1 . Authchips . | . . . . . . . . . . . . . . . . . . . . . . . . . . . . . Time 335 | . . . . . . . 31 . . . . . . . . . 76 . . . . 117 . . . . 111 . Total Part Build Rating 31 | . . . . . . . 10 . . . . . . . . . 5 . . . . 7 . . . . 9 . Parts Repaired 17 | . 4 . . . 4 8 1 . . . . . . . . . . . . . . . . . . . . . Time 632 | . 104 . . . 140 369 19 . . . . . . . . . . . . . . . . . . . . . Parts Recycled . | . . . . . . . . . . . . . . . . . . . . . . . . . . . . . Recycled Matter . | . . . . . . . . . . . . . . . . . . . . . . . . . . . . . Retrieved Matter . | . . . . . . . . . . . . . . . . . . . . . . . . . . . . . Retrieved Components 8 | . 6 . . . . . . . . . . . . . . . . . . . . 2 . . . . . . Parts Scanalyzed . | . . . . . . . . . . . . . . . . . . . . . . . . . . . . . Part Schematics Acquired . | . . . . . . . . . . . . . . . . . . . . . . . . . . . . . Parts Damaged . | . . . . . . . . . . . . . . . . . . . . . . . . . . . . . Bothacking | -11 -10 -10 -10 -9 -8 -8 -7 -7 -7 -7 -6 -6 -6 -6 -6 -5 -5 -5 -5 -5 -4 -4 -4 -4 -4 -4 -3 -3 ------------ Run | Scr Mat Min Exi Min Mat Sto Fac Low Low Zio Pro Fac Low Low Dat Pro Fac Upp Upp War Pro Fac Ext Cet Arc Hub Res Tes Used RIF Installer . | . . . . . . . . . . . . . . . . . . . . . . . . . . . . . Robots Hacked . | . . . . . . . . . . . . . . . . . . . . . . . . . . . . . Non-combat . | . . . . . . . . . . . . . . . . . . . . . . . . . . . . . Combat . | . . . . . . . . . . . . . . . . . . . . . . . . . . . . . Robot Hacks Applied . | . . . . . . . . . . . . . . . . . . . . . . . . . . . . . Relay Couplers Released . | . . . . . . . . . . . . . . . . . . . . . . . . . . . . . Fabnet Peak Effective % . | . . . . . . . . . . . . . . . . . . . . . . . . . . . . . Robots Rewired 21 | . . . 5 . . . . . . . . . . . . . . . . . . . 16 . . . . . Allies Hacked . | . . . . . . . . . . . . . . . . . . . . . . . . . . . . . Hacks Repelled . | . . . . . . . . . . . . . . . . . . . . . . . . . . . . . Allies | -11 -10 -10 -10 -9 -8 -8 -7 -7 -7 -7 -6 -6 -6 -6 -6 -5 -5 -5 -5 -5 -4 -4 -4 -4 -4 -4 -3 -3 -------- Run | Scr Mat Min Exi Min Mat Sto Fac Low Low Zio Pro Fac Low Low Dat Pro Fac Upp Upp War Pro Fac Ext Cet Arc Hub Res Tes Total Allies 54 | . . . 5 4 . 12 6 . . . . 1 . . . 1 . . . . . 2 23 . . . . . Largest Group 12 | . . . 5 5 4 12 5 2 . . . 1 . . . 1 . . . . . 2 11 4 . . . . Highest-Rated Group 583 | . . . 66 71 71 193 58 52 . . . 10 . . . 96 . . . . . 112 583 162 . . . . Highest-Rated Ally 159 | . . . 21 31 31 29 26 26 . . . 10 . . . 96 . . . . . 56 159 51 . . . . Total Orders 6 | . . . . 1 . 5 . . . . . . . . . . . . . . . . . . . . . . STAY 3 | . . . . 1 . 2 . . . . . . . . . . . . . . . . . . . . . . FOLLOW 3 | . . . . . . 3 . . . . . . . . . . . . . . . . . . . . . . Ally Attacks 239 | . . . . 24 24 15 9 . . . . . . . . 18 . . . . . 14 114 21 . . . . Total Damage 6672 | . . . . 412 211 226 92 . . . . . . . . 554 . . . . . 521 3889 767 . . . . Kills 50 | . . . . 11 1 3 1 . . . . . . . . 2 . . . . . 6 22 4 . . . . Allies Corrupted . | . . . . . . . . . . . . . . . . . . . . . . . . . . . . . Allies Melted . | . . . . . . . . . . . . . . . . . . . . . . . . . . . . . Intel | -11 -10 -10 -10 -9 -8 -8 -7 -7 -7 -7 -6 -6 -6 -6 -6 -5 -5 -5 -5 -5 -4 -4 -4 -4 -4 -4 -3 -3 ------- Run | Scr Mat Min Exi Min Mat Sto Fac Low Low Zio Pro Fac Low Low Dat Pro Fac Upp Upp War Pro Fac Ext Cet Arc Hub Res Tes Robot Analysis Total 8 | . . . . . . 2 3 . . . . 1 . . . . 1 . . . . . . . . 1 . . Derelict Logs Recovered 10 | . . . . 1 . . . . . 1 . . 1 1 . 2 . . 3 . 1 . . . . . . . Drone Launches . | . . . . . . . . . . . . . . . . . . . . . . . . . . . . . Drone Recoveries . | . . . . . . . . . . . . . . . . . . . . . . . . . . . . . Decoded 0b10 Intel 31 | . . . . . . . . . . . . 19 . . . . 12 . . . . . . . . . . . Items 29 | . . . . . . . . . . . . 17 . . . . 12 . . . . . . . . . . . Patrols 1 | . . . . . . . . . . . . 1 . . . . . . . . . . . . . . . . Investigations 1 | . . . . . . . . . . . . 1 . . . . . . . . . . . . . . . . Exploration | -11 -10 -10 -10 -9 -8 -8 -7 -7 -7 -7 -6 -6 -6 -6 -6 -5 -5 -5 -5 -5 -4 -4 -4 -4 -4 -4 -3 -3 ------------- Run | Scr Mat Min Exi Min Mat Sto Fac Low Low Zio Pro Fac Low Low Dat Pro Fac Upp Upp War Pro Fac Ext Cet Arc Hub Res Tes Turns Passed 11639 | 2 973 120 673 546 1194 2268 499 350 195 211 404 219 152 382 27 166 168 101 164 223 327 649 493 76 19 292 551 195 Spaces Moved 14858 | 1 410 74 360 328 389 1536 1021 602 556 700 724 421 436 934 92 368 405 310 452 790 899 1240 663 105 50 467 346 179 Core 127 | . . . . . . . . . . . . . . . . . . . . . . . . . . . 51 76 Treads 1674 | . 248 74 360 328 59 286 . . . . . . . . . . . . . . . . . . . 55 249 15 Legs 1117 | 1 162 . . . 330 624 . . . . . . . . . . . . . . . . . . . . . . Wheels . | . . . . . . . . . . . . . . . . . . . . . . . . . . . . . Hover . | . . . . . . . . . . . . . . . . . . . . . . . . . . . . . Flight 11940 | . . . . . . 626 1021 602 556 700 724 421 436 934 92 368 405 310 452 790 899 1240 663 105 50 412 46 88 Fastest Speed 20 | 120 120 160 160 160 120 26 26 26 26 26 26 26 26 26 26 26 20 20 20 20 20 20 21 27 27 35 40 37 Average Speed 49 | 120 144 160 160 160 126 95 26 26 26 26 26 26 26 26 26 42 20 20 20 20 21 22 31 36 30 52 129 83 Slowest Speed 260 | 120 160 160 160 160 160 260 26 26 26 26 26 27 26 96 26 96 20 20 20 20 23 96 103 99 35 175 163 250 Overloaded Moves . | . . . . . . . . . . . . . . . . . . . . . . . . . . . . . Propulsion Burnouts . | . . . . . . . . . . . . . . . . . . . . . . . . . . . . . Robots Hopped 49 | . . . . . . 13 17 . . . 1 2 . . . . 1 . . 3 . 5 4 . . 1 2 . Cave-ins Triggered 2 | . . . . . . . . . . . . . . . . . . . . . . . 2 . . . . . Exploration Rate (%) 55 | 1 69 30 70 71 26 93 28 72 69 81 79 15 77 85 69 52 8 54 74 87 77 34 64 73 73 42 12 31 Regions Visited 28 Branch Regions 21 Pre-discovered Areas 8 | . . . 1 1 1 . 1 . . 2 . . . . 1 . . . . . 1 . . . . . . . Known Exits Taken 18 | . . . . . 1 . 1 1 1 1 1 1 1 1 1 1 1 1 1 1 1 1 . . . 1 . . Unknown Exits Taken 10 | 1 1 1 1 1 . 1 . . . . . . . . . . . . . . . . 1 1 1 . 1 . Scrap Searched 24 | . . 1 . 1 . . . 2 1 2 2 . 3 3 . 4 . 2 1 . 2 . . . . . . . Spaces Dug 211 | . . . . 5 8 6 10 3 16 . 45 8 2 21 1 . 6 2 1 2 13 43 13 1 1 4 . . Terrain Destroyed 629 | . . . . 8 15 64 10 3 16 . 54 8 2 43 1 . 6 2 1 2 13 90 35 51 1 175 29 . Melee 121 | . . . . . . 1 10 3 16 . 29 8 2 5 1 . 6 2 1 2 13 17 3 1 1 . . . Projectile 52 | . . . . . . 1 . . . . . . . . . . . . . . . 29 18 . . 4 . . AOE 456 | . . . . 8 15 62 . . . . 25 . . 38 . . . . . . . 44 14 50 . 171 29 . Terrain Rammed . | . . . . . . . . . . . . . . . . . . . . . . . . . . . . . Walls Destroyed . | . . . . . . . . . . . . . . . . . . . . . . . . . . . . . Machines Disabled . | . . . . . . . . . . . . . . . . . . . . . . . . . . . . . Actions | -11 -10 -10 -10 -9 -8 -8 -7 -7 -7 -7 -6 -6 -6 -6 -6 -5 -5 -5 -5 -5 -4 -4 -4 -4 -4 -4 -3 -3 --------- Run | Scr Mat Min Exi Min Mat Sto Fac Low Low Zio Pro Fac Low Low Dat Pro Fac Upp Upp War Pro Fac Ext Cet Arc Hub Res Tes Total 18221 | 1 640 75 458 347 906 2185 1195 761 579 724 885 509 468 1051 92 376 482 345 523 848 1008 1529 902 128 53 505 431 215 Wait 2142 | . 124 . . 8 343 456 142 118 1 . 110 60 22 91 . 2 61 26 65 34 91 162 155 10 . 7 48 6 Move 14737 | . 409 73 359 327 389 1511 988 601 555 699 721 416 435 933 91 367 402 309 451 784 898 1229 653 104 49 464 341 179 Hop 43 | . . . . . . 11 15 . . . 1 2 . . . . 1 . . 2 . 5 3 . . 1 2 . Pick Up 99 | . 3 1 1 3 8 26 5 2 1 6 1 5 1 . . 2 3 3 . 2 . 13 1 . . 1 11 . Fast Attach 144 | . 10 . . . 23 25 5 1 . 4 7 3 4 2 . 1 . . 3 9 . 12 6 . . 12 6 11 Attach 64 | . 4 . . . 7 8 5 1 1 . 2 3 . 1 . 2 2 . . . . 6 10 3 . 5 4 . Detach 42 | . 1 . . . 6 9 2 1 . . 1 . . 1 . . 1 . . 1 1 3 10 1 . 3 . 1 Swap 119 | 1 2 1 1 1 11 19 10 14 3 1 2 3 2 7 . 1 3 2 . 3 3 25 3 . . 1 . . Drop 156 | . 2 . 2 3 20 39 . 4 1 9 5 7 2 2 . 1 3 3 3 11 1 24 . . 3 4 3 4 Fire 338 | . 82 . . 2 98 68 . . . . 2 . . 8 . . . . . . . 18 44 2 . 7 7 . Melee 199 | . . . . . . 9 23 19 17 5 33 10 2 6 1 . 6 2 1 2 14 32 8 8 1 . . . Ram . | . . . . . . . . . . . . . . . . . . . . . . . . . . . . . Kick 3 | . 1 . . . 1 1 . . . . . . . . . . . . . . . . . . . . . . Crush 31 | . 2 . . 3 . 3 . . . . . . . . . . . . . . . . . . . . 9 14 Escape Stasis 9 | . . . . . . . . . . . . . . . . . . . . . . . 9 . . . . . Rewire 95 | . . . 95 . . . . . . . . . . . . . . . . . . . . . . . . . Trap . | . . . . . . . . . . . . . . . . . . . . . . . . . . . . . Miscellaneous . | . . . . . . . . . . . . . . . . . . . . . . . . . . . . . Route ------- -11/Scrapyard -10/Materials (discovered 3 exits: [*Mat x2] / [*Min]) -10/Mines -10/Exiles -9/Mines (discovered 2 exits: *Mat x2) -8/Materials (discovered 3 exits: *Fac / *Sto x2) -8/Storage -7/Factory (discovered 2 exits: *Low x2) -7/Lower Caves -7/Lower Caves -7/Zion (discovered 2 exits: Dee / *Pro) -6/Proximity Caves -6/Factory (discovered 2 exits: *Low x2) -6/Lower Caves -6/Lower Caves (discovered 2 exits: *Fac / *Dat) -6/Data Miner -5/Proximity Caves -5/Factory (discovered 3 exits: *Fac / *Upp x2) -5/Upper Caves -5/Upper Caves (discovered 2 exits: *Fac / *War) -5/Warlord -4/Proximity Caves -4/Factory (discovered 3 exits: *Res / Upp / *Ext) -4/Extension (discovered 2 exits: *Res / *Cet) -4/Cetus -4/Archives -4/Hub_04(d) (discovered 4 exits: *Res x4) -3/Research -3/Testing (discovered 1 exit: [*Res]) History --------- Turn | Location | Event 3 | -11/Scrapyard | Discovered new exit (range 0) 3 | -11/Scrapyard | Entered Materials 213 | -10/Materials | Discovered new exit (range 10) 278 | -10/Materials | Discovered new exit (range 16) 311 | -10/Materials | Build established: Mutant 439 | -10/Materials | Core integrity fell below 50% 467 | -10/Materials | Lost 4 parts (1p1n2w) 562 | -10/Materials | Discovered new exit (range 14) 727 | -10/Materials | Repaired Lgt. Treads 754 | -10/Materials | Repaired Assault Rifle 782 | -10/Materials | Repaired Lgt. Treads 809 | -10/Materials | Repaired EM Pulse Gun 976 | -10/Materials | Entered Mines 1089 | -10/Mines | Deemed a non-threat by the Exiles lab entrance 1089 | -10/Mines | Discovered new exit (range 5) 1096 | -10/Mines | Entered Exiles 1096 | -10/Exiles | Found Exiles lab destroyed 1393 | -10/Exiles | Learned location of Zion (-7) 1568 | -10/Exiles | Opened EX-Vault 1586 | -10/Exiles | Found AWS/Autocannon 1626 | -10/Exiles | Build established: Commander-Mutant 1748 | -10/Exiles | Discovered new exit (range 14) 1769 | -10/Exiles | Entered Mines 1769 | -9/Mines | Accompanied by 5 allies 1886 | -9/Mines | Discovered new exit (range 5) 2041 | -9/Mines | Assembled infested the area 2133 | -9/Mines | Assisted by bots powering up and referring to "LRC-V3" 2179 | -9/Mines | Found a damaged Exp. Sensor Array with a note attached 2183 | -9/Mines | Found Prototype Device 2242 | -9/Mines | Build established: Mutant 2300 | -9/Mines | Discovered new exit (range 11) 2303 | -9/Mines | Received a Mining Laser from a helpful Derelict 2315 | -9/Mines | Entered Materials 2315 | -8/Materials | Accompanied by 4 allies 2315 | -8/Materials | Evolved 4 slots: Propulsion x2, Utility x2 2680 | -8/Materials | Build established: Scavenger-Mutant 2699 | -8/Materials | Garrison activated, responded to threat 2901 | -8/Materials | Repaired Lgt. Armor Plating 2940 | -8/Materials | Repaired Carbon-fiber Leg 2980 | -8/Materials | Repaired Carbon-fiber Leg 3346 | -8/Materials | Discovered new exit (range 13) 3365 | -8/Materials | Identified exit to Storage 3483 | -8/Materials | Repaired Carbon-fiber Leg 3509 | -8/Materials | Entered Storage 3588 | -8/Storage | Repaired Lgt. Armor Plating 3628 | -8/Storage | Repaired Imp. Heat Sink 3667 | -8/Storage | Repaired Carbon-fiber Leg 3695 | -8/Storage | Repaired Aluminum Leg 4987 | -8/Storage | Identified Exp. Sensor Array 5057 | -8/Storage | Repaired Lgt. Armor Plating 5194 | -8/Storage | Repaired Broken Exp. Sensor Array 5255 | -8/Storage | Repaired Imp. VTOL Module 5410 | -8/Storage | Repaired Hardlight Generator 5525 | -8/Storage | Assisted by bots powering up and referring to "LRC-V3" 5545 | -8/Storage | Discovered new exit (range 16) 5777 | -8/Storage | Entered Factory 5777 | -7/Factory | Accompanied by 2 allies 5777 | -7/Factory | Evolved 2 slots: Utility x2 5850 | -7/Factory | Fabricated Adv. Signal Interpreter (x2) 5881 | -7/Factory | Fabricated S-27 Virus? 5909 | -7/Factory | Identified exit to Lower Caves 5909 | -7/Factory | Central database locked down 5921 | -7/Factory | Lost 3 parts (1p2u) 6177 | -7/Factory | Search patrols dispatched 6195 | -7/Factory | Repaired Katana 6276 | -7/Factory | Entered Lower Caves 6276 | -7/Lower Caves | Accompanied by 2 allies 6354 | -7/Lower Caves | Attracted the attention of an 0b10 checkpoint 6496 | -7/Lower Caves | Build established: Hacker-Sprinter 6616 | -7/Lower Caves | Discovered new exit (range 12) 6619 | -7/Lower Caves | Identified exit to Lower Caves 6626 | -7/Lower Caves | Entered another Lower Caves area 6818 | -7/Lower Caves | Discovered new exit (range 15) 6821 | -7/Lower Caves | Identified exit to Zion 6821 | -7/Lower Caves | Entered Zion 6831 | -7/Zion | Discovered new exit (range 9) 6842 | -7/Zion | Found Prototype Launcher 6842 | -7/Zion | Identified Gui. Missile Launcher 6930 | -7/Zion | Found GAL Module 6945 | -7/Zion | Given the Hacking Drone Bay 6950 | -7/Zion | Identified exit to Deep Caves 6972 | -7/Zion | Learned location of Quarantine (-2) 6978 | -7/Zion | Learned location of Warlord (-5) 7031 | -7/Zion | Identified exit to Proximity Caves 7032 | -7/Zion | Entered Proximity Caves 7085 | -6/Proximity Caves | Encountered a Derelict sapper outpost 7376 | -6/Proximity Caves | Lost 3 parts (1p2u) 7434 | -6/Proximity Caves | Discovered new exit (range 9) 7436 | -6/Proximity Caves | Identified exit to Factory 7436 | -6/Proximity Caves | Entered Factory 7436 | -6/Factory | Evolved 2 slots: Utility x2 7509 | -6/Factory | Identified exit to Lower Caves 7640 | -6/Factory | Build established: Sprinter 7655 | -6/Factory | Entered Lower Caves 7673 | -6/Lower Caves | Encountered a Warlord checkpoint 7728 | -6/Lower Caves | Found Alien Artifact 7728 | -6/Lower Caves | Identified Core Expander 7728 | -6/Lower Caves | Installed Core Expander, added new Power slot 7792 | -6/Lower Caves | Discovered new exit (range 5) 7793 | -6/Lower Caves | Identified exit to Lower Caves 7807 | -6/Lower Caves | Entered another Lower Caves area 7853 | -6/Lower Caves | Discovered new exit (range 15) 7857 | -6/Lower Caves | Identified exit to Factory 7872 | -6/Lower Caves | Encountered a Warlord checkpoint 8016 | -6/Lower Caves | Learned Factory terminal intel 8147 | -6/Lower Caves | Discovered new exit (range 14) 8188 | -6/Lower Caves | Identified exit to Data Miner 8189 | -6/Lower Caves | Entered Data Miner 8189 | -6/Data Miner | Discovered new exit (range 6) 8194 | -6/Data Miner | Met Data Miner 8201 | -6/Data Miner | Learned location of Section 7 (-2) 8201 | -6/Data Miner | Acquired the access code to Warlord's prototype stash 8203 | -6/Data Miner | Received God Mode back door access code from Data Miner 8215 | -6/Data Miner | Identified exit to Proximity Caves 8216 | -6/Data Miner | Entered Proximity Caves 8230 | -5/Proximity Caves | Learned Factory emergency access door positions 8327 | -5/Proximity Caves | Discovered exit to Factory (range 8) 8329 | -5/Proximity Caves | Learned Factory garrison access intel 8382 | -5/Proximity Caves | Entered Factory 8382 | -5/Factory | Evolved 2 slots: Propulsion x2 8384 | -5/Factory | Loaded intel: 24 terminal locations 8385 | -5/Factory | Loaded intel: 4 garrison access locations 8388 | -5/Factory | Identified exit to Upper Caves 8434 | -5/Factory | Incoming investigation squad redirected 8480 | -5/Factory | Fabricated Lgt. Regenerative Plating (x1) 8532 | -5/Factory | Discovered new exit (range 15) 8534 | -5/Factory | Identified exit to Factory 8550 | -5/Factory | Entered Upper Caves 8614 | -5/Upper Caves | Encountered a Warlord checkpoint 8641 | -5/Upper Caves | Discovered new exit (range 14) 8651 | -5/Upper Caves | Identified exit to Upper Caves 8651 | -5/Upper Caves | Entered another Upper Caves area 8665 | -5/Upper Caves | Discovered exit to Factory (range 10) 8667 | -5/Upper Caves | Learned Factory emergency access door positions 8681 | -5/Upper Caves | Build established: Hacker-Sprinter 8729 | -5/Upper Caves | Learned 12 Factory zone layouts 8742 | -5/Upper Caves | Encountered a Warlord checkpoint 8748 | -5/Upper Caves | Attracted the attention of an 0b10 checkpoint 8794 | -5/Upper Caves | Learned location of 1 exit from Factory 8813 | -5/Upper Caves | Discovered new exit (range 12) 8815 | -5/Upper Caves | Identified exit to Warlord 8815 | -5/Upper Caves | Entered Warlord 8822 | -5/Warlord | Discovered new exit (range 12) 8824 | -5/Warlord | Identified exit to Proximity Caves 8905 | -5/Warlord | Visited the Vortex Lab 8906 | -5/Warlord | Found Prototype Energy Gun 8906 | -5/Warlord | Identified Vortex Rail 8909 | -5/Warlord | Found Prototype Launcher 8909 | -5/Warlord | Identified Vortex Catalyst Activator 8914 | -5/Warlord | Found Vortex Rail 8928 | -5/Warlord | Warlord's base attacked by MAIN.C 8934 | -5/Warlord | Met Warlord 8936 | -5/Warlord | Opened Warlord's prototype stash 8938 | -5/Warlord | Found Prototype Hackware 8938 | -5/Warlord | Identified Ghost Barrier 8941 | -5/Warlord | Found Prototype Reactor 8941 | -5/Warlord | Identified Vortex Chain Reactor 8948 | -5/Warlord | Found Prototype Device 8948 | -5/Warlord | Identified Exp. Cloaking Device 8991 | -5/Warlord | Opened side exit 9038 | -5/Warlord | Entered Proximity Caves 9088 | -4/Proximity Caves | Spotted B-86 Titan 9301 | -4/Proximity Caves | Discovered exit to Factory (range 12) 9365 | -4/Proximity Caves | Entered Factory 9365 | -4/Factory | Evolved 2 slots: Propulsion x1, Utility x1 9366 | -4/Factory | Identified exit to Extension 9367 | -4/Factory | Identified exit to Upper Caves 9368 | -4/Factory | Found Gamma Bomb Array 9584 | -4/Factory | Incoming investigation squad redirected 9598 | -4/Factory | Incoming investigation squad redirected 9636 | -4/Factory | Fabricated H-77 Assassin (x2) 9674 | -4/Factory | Fabricated Micro-nuke Launcher? 9901 | -4/Factory | Search patrols dispatched 9950 | -4/Factory | Lost 3 parts (1p2u) 9987 | -4/Factory | Discovered new exit (range 10) 9999 | -4/Factory | Identified exit to Research 10014 | -4/Factory | Entered Extension 10161 | -4/Extension | Rescued a captive Derelict 10163 | -4/Extension | Rescued a captive Derelict 10173 | -4/Extension | Rescued a captive Derelict 10175 | -4/Extension | Rescued a captive Derelict 10192 | -4/Extension | Rescued a captive Derelict 10252 | -4/Extension | Crushed by falling debris 10253 | -4/Extension | System corruption reached 10% 10256 | -4/Extension | Crushed by falling debris 10264 | -4/Extension | Search patrols dispatched 10268 | -4/Extension | Rescued a captive Derelict 10268 | -4/Extension | Rescued a captive Derelict 10281 | -4/Extension | Energy Cycler disabled 10282 | -4/Extension | Rescued a captive Derelict 10287 | -4/Extension | Lost 7 parts (1p1n5u) 10294 | -4/Extension | Rescued a captive Derelict 10346 | -4/Extension | Rescued A7 10485 | -4/Extension | Discovered exit to Research (range 10) 10485 | -4/Extension | Discovered new exit (range 6) 10494 | -4/Extension | Extracted ID and sensor layout for unrecognized location from A7's data core 10507 | -4/Extension | Entered Cetus 10507 | -4/Cetus | Accompanied by 4 allies 10520 | -4/Cetus | Spotted Cetus Guard 10520 | -4/Cetus | Spotted Cetus Guard 10528 | -4/Cetus | Spotted Cetus Guard 10528 | -4/Cetus | Spotted Cetus Guard 10559 | -4/Cetus | Lost 5 parts (1p1n1u2w) 10579 | -4/Cetus | Discovered new exit (range 15) 10583 | -4/Cetus | Entered Archives 10598 | -4/Archives | Discovered new exit (range 14) 10602 | -4/Archives | Entered Hub_04(d) 10629 | -4/Hub_04(d) | Lost 5 parts (3n1u1w) 10686 | -4/Hub_04(d) | Spotted B-86 Titan 10848 | -4/Hub_04(d) | Network Hub disabled 10867 | -4/Hub_04(d) | Spotted Lightning 10875 | -4/Hub_04(d) | Spotted Lightning 10890 | -4/Hub_04(d) | Build established: Hacker-Mutant 10894 | -4/Hub_04(d) | Entered Research 10894 | -3/Research | Evolved 2 slots: Power x1, Weapon x1 11033 | -3/Research | Fabricated Ragnarok Missile Launcher (x1) 11193 | -3/Research | First assault squad dispatched 11326 | -3/Research | Incoming assault squad redirected 11359 | -3/Research | System corruption reached 10% 11376 | -3/Research | Core integrity fell below 50% 11403 | -3/Research | Spotted B-86 Titan 11404 | -3/Research | System corruption reached 30% 11405 | -3/Research | Core integrity fell below 20% 11425 | -3/Research | Lost 16 parts (1p4n8u3w) 11435 | -3/Research | Discovered new exit (range 10) 11445 | -3/Research | Entered Testing 11598 | -3/Testing | Discovered new exit (range 14) 11640 | -3/Testing | Destroyed by P-80 Master with Gamma Rifle Last Messages --------------- 11563_ Dropped Adv. Heavy Treads. 11564_ Acquired Adv. Heavy Treads. 11569_ System corrupted: Heat flow error (+162). 11576_ Connecting with Garrison Access... 11576_ Dropped Faulty Cld. Plasma Rifle. 11582_ Slammed into W-44 Eye. 11588_ Slammed into R-10 Processor. 11597_ System corrupted: Matter fused (-9). 11598_ EXIT=FOUND 11604_ Acquired Adv. Signal Interpreter. 11610_ Acquired Prototype Energy Cannon. 11610_ Identified Imp. Matter Neutralizer. 11614_ System corrupted: Component data lost. 11630_ P-80 Master resets C-55 Analyst, system corruption cleaned. 11632_ System corrupted: Q-thruster rejected. 11632_ P-80 Master resets C-55 Analyst, system corruption cleaned. 11634_ Q-thruster destroyed. 11635_ P-80 Master resets P-80 Master, system corruption cleaned. 11637_ R-10 Processor collects Q-thruster. 11639_ Dropped Adv. Heavy Treads. Map ----- +----------------------------------------------------+ | | | | | | | ?????????????????????????????????????????????????? | | ?????????????????????????????????????????????????? | | ?????????????????????????????????????????????????? | | ?????????????????????????????????????????????????? | | ?????????????????????????????????????????????????? | | ?????????????????????????????????????????????????? | | ?????????????????????????????????????????????????? | | ?????????????????????????????????????????? ??????? | | ??????????????#?##########+############# ???????? | | ?????????????? ? ????????? | | ????????????? = ????????? | | ?????????????"" """ """ ???????????? | | ??????????" """ """ """ #??????????????? | | ????????""" """ """ """ !!! ]][#??????????????? | | ?????? ! [[#??????????????? | | ????? ! ][ #??????????????? | | ???? #??????????????? | | ????? #??????????????? | | ############## #??????????????? | | # # #??????????????? | | # # k #??????????????? | | # # R= k #??????????????? | | # """ # @ < #??????????????? | | / """ # #??????????????? | | ## """ + #??????????????? | | ## " # #??????????????? | | ## # #??????????????? | | ## """ #k u +??????????????? | | / "?" # ####??????????????? | | ## """ # pc #?????????????????? | | ## # c #?????????????????? | | ############### c #?????????????????? | | # #???# u ppw#?????????????????? | | + """"" #???# ?????????????????? | | # """"" #???# ####A## #?????????????????? | | # = """"" #???# #??? #? #?????????????????? | | # #???# #??? ?? ???????????????????? | | # #???? #??? ???????????????????????? | | # """[""" #???? ?????????????????????????????? | | # """G""" #????????????????????????????????????? | | ###########????????????????????????????????????? | | #??????????????????????????????????????????????? | | #??????????????????????????????????????????????? | | #??????????????????????????????????????????????? | | #??????????????????????????????????????????????? | | #??????????????????????????????????????????????? | | #??????????????????????????????????????????????? | +----------------------------------------------------+ Best States ------------- Heat Dissipation 73 Energy Generation 37 Energy Capacity 980 Matter Stores 300 Matter Capacity 300 Sight Range 20 Robot Scan Range 20 Terrain Scan Density 610 Jamming Range 12 Cloak Strength 4 Armor Coverage 375 Evasion (%) 77 Melee Accuracy 8 Recoil Reduction 7 Offensive Hacking 30 Defensive Hacking 34 Authchip Count 2 Item Schematics ----------------- Adv. Signal Interpreter | -7/Factory | Hacked Combat Drone Bay | -6/Data Miner | Free Lgt. Regenerative Plating | -6/Data Miner | Free Cld. Gravmag System | -6/Data Miner | Free Imp. Energy Well | -6/Data Miner | Free Enh. Force Rifle | -6/Data Miner | Free Imp. Antigrav System | -6/Data Miner | Free Lrn. Sensor Array | -6/Data Miner | Free Hvy. Disruptor Cannon | -6/Data Miner | Free Lrn. Terrain Scanner | -6/Data Miner | Free Hardcell Cannon | -6/Data Miner | Free Adv. Heavy Treads | -6/Data Miner | Free Micro-nuke Launcher | -4/Factory | Hacked Robot Schematics ------------------ Y-64 Sentinel | -6/Data Miner | Free P-60 Hacker | -6/Data Miner | Free B-60 Warrior | -6/Data Miner | Free R-10 Processor | -6/Data Miner | Free H-77 Assassin | -6/Data Miner | Free A-15 Conveyor | -6/Data Miner | Free Fabricated ------------ Adv. Signal Interpreter | x2 | -7/Factory S-27 Virus | x4 | -7/Factory | Preloaded Lgt. Regenerative Plating | x1 | -5/Factory H-77 Assassin | x2 | -4/Factory Micro-nuke Launcher | x1 | -4/Factory Ragnarok Missile Launcher | x1 | -3/Research | Preloaded Alien Tech Used ----------------- Core Expander Achievements -------------- None Challenges ------------ None Game ------ Seed ReactiveMicroDetector Manual? 0 Play Time 03:01:39 Cumulative 111.8 hours Start 2022.09.27 @ 06:59:12 End 2022.09.27 @ 09:59:43 Sessions 1 Manual Loads 0 Difficulty Rogue Special Mode None Game No. 143 Rogue 143 Adventurer 0 Explorer 0 Win Type - Total 1 Types 1/0/0/0/0/0/0/0/0 Lore% 64 Gallery% 68 Achievement% 53 Wizard Run 0 Options --------- ASCII 0 Keyboard 0 Movement Numpad Keybinds 0 Fullscreen 2 Font 18/SmallcapsGlow Map View 76x50 Tactical HUD 1 Map Filters NONE Filters NONE Steam 1 RUN: f539f2bd-04d8-4ee2-8e87-1e7f425585d8